fUST/lending_fUST_20250920
["ID","MTS","AMOUNT","RATE_DAILY","PERIOD"]
[386523180,1758347446422,-1845.78,0.00027995,2]
[386523181,1758347446431,-524.98740363,0.00027995,2]
[386523182,1758347446440,-213.0,0.00028,120]
[386523183,1758347446450,-154.1887858,0.00028,30]
[386523184,1758347446459,-558.13,0.00028028,15]
[386523185,1758347446472,-151.0,0.00028053,7]
[386523186,1758347446481,-151.0,0.00028053,7]
[386523187,1758347446491,-151.0,0.00028053,7]
[386523188,1758347446500,-151.0,0.00028053,7]
[386523189,1758347446511,-284.474576,0.00028053,7]
[386523190,1758347446520,-284.474576,0.00028053,7]
[386523191,1758347446530,-284.474576,0.00028053,7]
[386523192,1758347446539,-151.0,0.00028053,7]
[386523193,1758347446550,-284.474576,0.00028053,7]
[386523194,1758347446559,-480.0,0.00028054,2]
[386523195,1758347446568,-151.0,0.00028054,7]
[386523196,1758347446578,-151.0,0.00028054,7]
[386523197,1758347446587,-298.514952,0.00028054,7]
[386523198,1758347446597,-298.514952,0.00028054,7]
[386523199,1758347446606,-298.514952,0.00028054,7]
[386523200,1758347446616,-298.514952,0.00028054,7]
[386523201,1758347446625,-160.077047,0.00028054,7]
[386523202,1758347446635,-151.0,0.00028054,7]
[386523203,1758347446644,-151.0,0.00028054,7]
[386523204,1758347446653,-151.0,0.00028054,7]
[386523205,1758347446663,-481.31010729,0.00028054,2]
[386523206,1758347446746,-480.0,0.00028054,2]
[386523207,1758347446765,-3858.67554014,0.00028126,2]
[386523208,1758347446829,-2309.7144769,0.00028126,2]
[386523209,1758347446947,-480.0,0.00026295,2]
[386523210,1758347446957,-480.0,0.00026569,2]
[386523211,1758347446967,-480.0,0.00027388,2]
[386523212,1758347446977,-480.0,0.00027662,2]
[386523213,1758347446987,-480.0,0.00027936,2]
[386523214,1758347446996,-4957.97383543,0.00028126,2]
[386523215,1758347447055,-151.0,0.00026611,7]
[386523216,1758347447064,-120.89600273,0.00026843,2]
[386523217,1758347468351,216.56326175,0.000199,2]
[386523218,1758347648264,214.04808901,0.000199,2]
[386523303,1758347846785,212.2668616,0.000199,2]
[386523305,1758348032665,210.46775561,0.000199,2]
[386523328,1758348411161,213.15899829,0.000199,2]
[386523329,1758348435102,-285.6880503,0.00022199,2]
[386523331,1758348549126,-179.55556,0.00022104,2]
[386523332,1758348549151,-232.985281,0.00022104,2]
[386523333,1758348549172,-217.90450273,0.00022199,2]
[386523421,1758348638682,-292.76666207,0.00022199,2]
[386523422,1758348638692,-225.57385429,0.00022285,2]
[386523423,1758348638702,-160.0,0.00022954,2]
[386523424,1758348638712,-160.0,0.00022954,2]
[386523425,1758348638723,-398.61098053,0.00022973,2]
[386523426,1758348638737,-228.70975343,0.00022973,2]
[386523427,1758348638747,-118.37717582,0.00022974,2]
[386523428,1758348638762,-502.05310668,0.00022974,2]
[386523429,1758348638772,-500.0,0.00022974,2]
[386523430,1758348638781,-848.27550084,0.00023,2]
[386523431,1758348638790,-369.44409671,0.00023031,2]
[386523432,1758348638798,-300.0,0.000231,2]
[386523433,1758348638808,-300.0,0.000231,2]
[386523434,1758348638819,-245.27425417,0.000231,2]
[386523435,1758348638830,-54.72574583,0.000231,2]
[386523436,1758348638840,-1200.0,0.000231,2]
[386523437,1758348638849,-500.0,0.000231,2]
[386523438,1758348638858,-500.0,0.000231,2]
[386523439,1758348638867,-136.53609053,0.000231,2]
[386523440,1758348638879,-363.46390947,0.000231,2]
[386523441,1758348638888,-500.0,0.000231,2]
[386523442,1758348638898,-500.0,0.000231,2]
[386523443,1758348638907,-500.0,0.000231,2]
[386523444,1758348638916,-500.0,0.000231,2]
[386523445,1758348638925,-229.43910284,0.000231,2]
[386523446,1758348638935,-500.0,0.000231,2]
[386523447,1758348638944,-500.0,0.000231,2]
[386523448,1758348638954,-500.0,0.000231,2]
[386523449,1758348638963,-500.0,0.000231,2]
[386523450,1758348638972,-500.0,0.000231,2]
[386523451,1758348638982,-500.0,0.000231,2]
[386523452,1758348638991,-500.0,0.000231,2]
[386523453,1758348639002,-500.0,0.000231,2]
[386523454,1758348639012,-500.0,0.000231,2]
[386523455,1758348639022,-500.0,0.000231,2]
[386523456,1758348639031,-500.0,0.000231,2]
[386523457,1758348639041,-500.0,0.000231,2]
[386523458,1758348639051,-305.79044147,0.000231,2]
[386523459,1758348639062,-194.20955853,0.000231,2]
[386523460,1758348639071,-500.0,0.000231,2]
[386523461,1758348639081,-500.0,0.000231,2]
[386523462,1758348639090,-12650.01454956,0.00023101,2]
[386523463,1758348639099,-666.0,0.00023119,2]
[386523464,1758348639109,-500.0,0.00023173,2]
[386523465,1758348639119,-500.0,0.00023173,2]
[386523466,1758348639128,-504.06798637,0.00023173,2]
[386523467,1758348639138,-500.0,0.00023173,2]
[386523468,1758348639148,-500.0,0.00023173,2]
[386523469,1758348639158,-500.0,0.00023173,2]
[386523470,1758348639167,-228.21948707,0.00023191,2]
[386523471,1758348639176,-189.84868899,0.00023191,2]
[386523472,1758348639186,-1132.0,0.00023192,2]
[386523473,1758348639195,-480.0,0.00023198,2]
[386523474,1758348639209,-512.09,0.00023198,2]
[386523475,1758348639219,-480.0,0.00023198,2]
[386523476,1758348639229,-480.0,0.00023198,2]
[386523477,1758348639238,-520.15,0.00023198,2]
[386523478,1758348639249,-480.0,0.00023198,2]
[386523479,1758348639259,-529.8,0.00023198,2]
[386523480,1758348639268,-480.0,0.00023198,2]
[386523481,1758348639279,-480.0,0.00023198,2]
[386523482,1758348639289,-570.62,0.00023198,2]
[386523483,1758348639299,-480.0,0.00023198,2]
[386523484,1758348639308,-480.0,0.00023198,2]
[386523485,1758348639318,-512.53,0.00023198,2]
[386523486,1758348639327,-12826.0069075,0.00023199,2]
[386523487,1758348639336,-150.0,0.00023201,2]
[386523488,1758348639346,-480.0,0.00023201,2]
[386523489,1758348639355,-480.0,0.00023201,2]
[386523490,1758348639364,-606.96,0.00023201,2]
[386523491,1758348639374,-480.0,0.00023201,2]
[386523492,1758348639383,-480.0,0.00023201,2]
[386523493,1758348639393,-482.41795617,0.00023201,2]
[386523494,1758348639402,-480.0,0.00023201,2]
[386523495,1758348639413,-480.0,0.00023201,2]
[386523496,1758348639424,-480.0,0.00023201,2]
[386523497,1758348639433,-253.73279796,0.00023201,2]
[386523498,1758348639444,-480.0,0.00023201,2]
[386523499,1758348639453,-217.11716973,0.00023201,2]
[386523500,1758348639463,-246.66997102,0.00023201,2]
[386523501,1758348639474,-480.0,0.00023202,2]
[386523502,1758348639484,-480.0,0.00023202,2]
[386523503,1758348639493,-6363.6400381,0.00023203,2]
[386523504,1758348639503,-264.458042,0.00023472,2]
[386523505,1758348639515,-215.541958,0.00023472,2]
[386523506,1758348639524,-480.0,0.00023472,2]
[386523507,1758348639535,-480.0,0.00023472,2]
[386523508,1758348639544,-480.0,0.00023472,2]
[386523509,1758348639554,-480.0,0.00023472,2]
[386523510,1758348639563,-570.62,0.00023472,2]
[386523511,1758348639573,-198.18159879,0.00023472,2]
[386523512,1758348639582,-480.0,0.00023475,2]
[386523513,1758348639592,-480.0,0.00023475,2]
[386523514,1758348639602,-480.0,0.00023475,2]
[386523515,1758348639612,-480.0,0.00023475,2]
[386523516,1758348639622,-480.0,0.00023475,2]
[386523517,1758348639632,-480.0,0.00023475,2]
[386523518,1758348639641,-480.0,0.00023476,2]
[386523519,1758348639650,-150.0,0.000235,2]
[386523520,1758348639660,-507.36583507,0.00023721,2]
[386523521,1758348639670,-513.76130538,0.00023721,2]
[386523522,1758348639679,-480.0,0.00023746,2]
[386523523,1758348639689,-153.90044836,0.00023746,2]
[386523524,1758348639703,-326.09955164,0.00023746,2]
[386523525,1758348639713,-480.0,0.00023746,2]
[386523526,1758348639723,-480.0,0.00023746,2]
[386523527,1758348639734,-527.50157196,0.00023746,2]
[386523528,1758348639745,-570.62,0.00023746,2]
[386523529,1758348639756,-480.0,0.00023749,2]
[386523530,1758348639765,-480.0,0.00023749,2]
[386523531,1758348639775,-480.0,0.00023749,2]
[386523532,1758348639786,-480.0,0.00023749,2]
[386523533,1758348639797,-480.0,0.00023749,2]
[386523534,1758348639808,-480.0,0.0002375,2]
[386523535,1758348639820,-2124.0650071,0.00024,2]
[386523536,1758348639830,-480.0,0.0002402,2]
[386523537,1758348639839,-480.0,0.0002402,2]
[386523538,1758348639849,-480.0,0.0002402,2]
[386523539,1758348639859,-480.0,0.0002402,2]
[386523540,1758348639869,-570.62,0.0002402,2]
[386523541,1758348639880,-480.0,0.00024023,2]
[386523542,1758348639890,-480.0,0.00024023,2]
[386523543,1758348639899,-169.37,0.00024023,2]
[386523544,1758348639910,-480.0,0.00024023,2]
[386523545,1758348639919,-480.0,0.00024023,2]
[386523546,1758348639928,-480.0,0.00024024,2]
[386523547,1758348639938,-446.0,0.00024062,2]
[386523548,1758348639947,-500.0,0.00024062,2]
[386523549,1758348639956,-151.0,0.00024062,2]
[386523550,1758348639965,-151.0,0.00024062,2]
[386523551,1758348639974,-500.0,0.00024062,2]
[386523552,1758348639984,-191.32674433,0.00024062,2]
[386523553,1758348639994,-151.0,0.00024062,2]
[386523554,1758348640004,-151.378,0.0002408,5]
[386523555,1758348640014,-160.0,0.00024106,2]
[386523556,1758348640024,-240.52117656,0.00024111,2]
[386523557,1758348640037,-160.0,0.0002417,2]
[386523558,1758348640047,-218.03426629,0.00024171,2]
[386523559,1758348640056,-160.0,0.00024172,2]
[386523560,1758348640066,-233.47853244,0.00024172,2]
[386523561,1758348640075,-480.0,0.00024206,2]
[386523562,1758348640085,-480.0,0.00024206,2]
[386523563,1758348640094,-480.0,0.00024294,2]
[386523564,1758348640103,-264.84,0.00024294,2]
[386523565,1758348640113,-480.0,0.00024294,2]
[386523566,1758348640123,-480.0,0.00024294,2]
[386523567,1758348640132,-570.62,0.00024294,2]
[386523568,1758348640142,-480.0,0.00024297,2]
[386523569,1758348640151,-536.53866889,0.00024297,2]
[386523570,1758348640161,-480.0,0.00024297,2]
[386523571,1758348640171,-480.0,0.00024297,2]
[386523572,1758348640183,-480.0,0.00024298,2]
[386523573,1758348640194,-446.0,0.00024336,2]
[386523574,1758348640205,-604.17842042,0.00024336,2]
[386523576,1758348640218,-151.0,0.00024336,2]
[386523579,1758348640231,-151.0,0.00024336,2]
[386523581,1758348640241,-500.0,0.00024336,2]
[386523583,1758348640251,-151.0,0.00024336,2]
[386523585,1758348640261,-334.0,0.00024397,60]
[386523587,1758348640271,-257.48433712,0.0002442,2]
[386523589,1758348640281,-480.0,0.0002448,2]
[386523592,1758348640290,-491.02879209,0.0002448,2]
[386523594,1758348640301,-500.0,0.00024506,2]
[386523596,1758348640311,-480.0,0.00024568,2]
[386523598,1758348640322,-480.0,0.00024568,2]
[386523600,1758348640332,-480.0,0.00024568,2]
[386523602,1758348640341,-570.62,0.00024568,2]
[386523604,1758348640351,-480.0,0.00024571,2]
[386523606,1758348640361,-480.0,0.00024571,2]
[386523608,1758348640371,-480.0,0.00024571,2]
[386523609,1758348640381,-480.0,0.00024572,2]
[386523611,1758348640391,-446.0,0.0002461,2]
[386523612,1758348640400,-217.09710637,0.0002461,2]
[386523614,1758348640410,-309.89371893,0.0002461,2]
[386523615,1758348640419,-151.0,0.0002461,2]
[386523616,1758348640429,-500.0,0.00024658,2]
[386523617,1758348640439,-500.0,0.00024658,2]
[386523618,1758348640448,-480.0,0.00024753,2]
[386523619,1758348640458,-217.0357504,0.000248,2]
[386523620,1758348640468,-480.0,0.00024842,2]
[386523621,1758348640477,-480.0,0.00024842,2]
[386523622,1758348640487,-480.0,0.00024842,2]
[386523623,1758348640496,-570.62,0.00024842,2]
[386523624,1758348640506,-475.20004794,0.00024845,2]
[386523625,1758348640515,-480.0,0.00024845,2]
[386523626,1758348640525,-504.16428535,0.00024845,2]
[386523627,1758348640534,-480.0,0.00024846,2]
[386523628,1758348640544,-446.0,0.00024884,2]
[386523629,1758348640553,-244.51113393,0.00024884,2]
[386523630,1758348640563,-12474.65372305,0.000249,2]
[386523631,1758348640720,-312.26707751,0.000249,2]
[386523632,1758348640733,-12158.6872,0.000249,2]
[386523640,1758348641021,-14942.36543051,0.000249,2]
[386523641,1758348641034,-1577.56203235,0.000249,2]
[386523659,1758348648768,-480.0,0.00023193,2]
[386523660,1758348648778,-480.0,0.00023467,2]
[386523661,1758348648788,-288.21,0.00023741,2]
[386523662,1758348648797,-1634.67851096,0.000249,2]
[386523664,1758348784085,207.18087447,0.000199,2]
[386523666,1758348979421,500.0,0.000199,2]
[386523667,1758348982927,209.09743935,0.000199,2]
[386523668,1758348989758,500.0,0.000199,2]
[386523680,1758349162170,204.4504016,0.000199,2]
[386523686,1758349536636,207.91279772,0.000199,2]
[386523693,1758349608031,150.0,0.0001935,2]
[386523696,1758349636205,-209.57956234,0.00022005,2]
[386523703,1758349730061,208.01030602,0.000199,2]
[386523704,1758349754126,-199.162606,0.00021599,2]
[386523705,1758349754147,-550.95659663,0.00021769,2]
[386523717,1758349837993,-5418.7739576,0.00021027,2]
[386523718,1758349838011,-208.16227191,0.00021266,2]
[386523719,1758349838020,-637.74832672,0.00021266,2]
[386523720,1758349838029,-500.0,0.00021266,2]
[386523721,1758349838039,-500.0,0.00021266,2]
[386523722,1758349838047,-500.0,0.00021266,2]
[386523723,1758349838057,-500.0,0.00021266,2]
[386523724,1758349838066,-500.0,0.00021266,2]
[386523725,1758349838075,-500.0,0.00021266,2]
[386523726,1758349838084,-500.0,0.00021266,2]
[386523727,1758349838178,-500.0,0.00021266,2]
[386523728,1758349838212,-343.18697475,0.00021266,2]
[386523729,1758349838222,-500.0,0.00021266,2]
[386523730,1758349838232,-500.0,0.00021266,2]
[386523731,1758349838241,-500.0,0.00021266,2]
[386523732,1758349838250,-376.27590741,0.00021266,2]
[386523733,1758349838259,-500.0,0.00021266,2]
[386523734,1758349838268,-500.0,0.00021266,2]
[386523735,1758349838278,-500.0,0.00021266,2]
[386523736,1758349838287,-500.0,0.00021266,2]
[386523737,1758349838296,-500.0,0.00021266,2]
[386523738,1758349838305,-640.00076707,0.00021266,2]
[386523739,1758349838314,-500.0,0.00021266,2]
[386523740,1758349838324,-500.0,0.00021266,2]
[386523741,1758349838334,-500.0,0.00021266,2]
[386523742,1758349838343,-500.0,0.00021266,2]
[386523743,1758349838352,-500.0,0.00021266,2]
[386523744,1758349838362,-500.0,0.00021266,2]
[386523745,1758349838371,-500.0,0.00021266,2]
[386523746,1758349838380,-500.0,0.00021266,2]
[386523747,1758349838389,-500.0,0.00021266,2]
[386523748,1758349838398,-500.0,0.00021266,2]
[386523749,1758349838407,-500.0,0.00021266,2]
[386523750,1758349838417,-500.0,0.00021266,2]
[386523751,1758349838426,-500.0,0.00021266,2]
[386523752,1758349838436,-500.0,0.00021266,2]
[386523753,1758349838445,-500.0,0.00021266,2]
[386523754,1758349838454,-500.0,0.00021266,2]
[386523755,1758349838464,-500.0,0.00021266,2]
[386523756,1758349838474,-500.0,0.00021266,2]
[386523757,1758349838483,-500.0,0.00021266,2]
[386523758,1758349838493,-500.0,0.00021266,2]
[386523759,1758349838502,-500.0,0.00021266,2]
[386523760,1758349838512,-500.0,0.00021266,2]
[386523761,1758349838521,-500.0,0.00021266,2]
[386523762,1758349838530,-500.0,0.00021266,2]
[386523763,1758349838539,-500.0,0.00021266,2]
[386523764,1758349838548,-500.0,0.00021266,2]
[386523765,1758349838558,-500.0,0.00021266,2]
[386523766,1758349838567,-500.0,0.00021266,2]
[386523767,1758349838577,-500.0,0.00021266,2]
[386523768,1758349838587,-500.0,0.00021266,2]
[386523769,1758349838596,-500.0,0.00021266,2]
[386523770,1758349838607,-500.0,0.00021266,2]
[386523771,1758349838616,-500.0,0.00021266,2]
[386523772,1758349838625,-500.0,0.00021266,2]
[386523773,1758349838635,-478.0,0.00021266,2]
[386523774,1758349838644,-10000.0,0.00021267,2]
[386523775,1758349838654,-300.0,0.00021768,2]
[386523776,1758349838664,-954.97607477,0.00021769,2]
[386523777,1758349838673,-187.07683266,0.00022005,2]
[386523778,1758349838682,-180.259438,0.00022066,2]
[386523779,1758349838692,-258.5820248,0.00022266,2]
[386523780,1758349838702,-13796.4749637,0.00022268,2]
[386523781,1758349838712,-677.7747735,0.00022872,2]
[386523782,1758349838723,-490.25079657,0.00022967,2]
[386523783,1758349838732,-480.0,0.00022967,2]
[386523784,1758349838741,-480.0,0.00022967,2]
[386523785,1758349838751,-480.0,0.00022967,2]
[386523786,1758349838760,-480.0,0.00022967,2]
[386523787,1758349838769,-6653.0308289,0.00022968,2]
[386523788,1758349838778,-160.0,0.00023038,2]
[386523789,1758349838787,-160.0,0.00023038,2]
[386523790,1758349838798,-531.84256808,0.00023048,2]
[386523791,1758349838808,-480.0,0.00023068,2]
[386523792,1758349838819,-480.0,0.00023068,2]
[386523793,1758349838828,-480.0,0.00023068,2]
[386523794,1758349838837,-480.0,0.00023068,2]
[386523795,1758349838847,-480.0,0.00023068,2]
[386523796,1758349838857,-480.0,0.00023068,2]
[386523797,1758349838866,-489.51899887,0.00023068,2]
[386523798,1758349838875,-480.0,0.00023068,2]
[386523799,1758349838885,-480.0,0.00023068,2]
[386523800,1758349838894,-480.0,0.00023068,2]
[386523801,1758349838904,-480.0,0.00023068,2]
[386523802,1758349838913,-480.0,0.00023068,2]
[386523803,1758349838922,-480.0,0.00023068,2]
[386523804,1758349838931,-480.0,0.00023068,2]
[386523805,1758349838941,-495.41,0.00023068,2]
[386523806,1758349838950,-480.0,0.00023068,2]
[386523807,1758349838959,-570.69,0.00023068,2]
[386523808,1758349838968,-480.0,0.00023068,2]
[386523809,1758349838978,-480.0,0.0002307,2]
[386523810,1758349838992,-480.0,0.0002307,2]
[386523811,1758349839001,-480.0,0.0002307,2]
[386523812,1758349839010,-480.0,0.0002307,2]
[386523813,1758349839019,-480.0,0.0002307,2]
[386523814,1758349839029,-480.0,0.0002307,2]
[386523815,1758349839039,-191.70049584,0.0002307,2]
[386523816,1758349839050,-472.7138471,0.0002307,2]
[386523817,1758349839059,-480.0,0.0002307,2]
[386523818,1758349839069,-480.0,0.0002307,2]
[386523819,1758349839079,-480.0,0.0002307,2]
[386523820,1758349839090,-480.0,0.0002307,2]
[386523821,1758349839100,-494.00975507,0.0002307,2]
[386523822,1758349839113,-480.0,0.0002307,2]
[386523823,1758349839122,-173.94343468,0.0002307,2]
[386523824,1758349839131,-480.0,0.0002307,2]
[386523825,1758349839143,-480.0,0.0002307,2]
[386523826,1758349839153,-480.0,0.0002307,2]
[386523827,1758349839163,-480.0,0.0002307,2]
[386523828,1758349839172,-480.0,0.0002307,2]
[386523829,1758349839182,-492.17586035,0.0002307,2]
[386523830,1758349839191,-480.0,0.0002307,2]
[386523831,1758349839200,-488.21816104,0.0002307,2]
[386523832,1758349839209,-609.53609839,0.0002307,2]
[386523833,1758349839219,-480.0,0.0002307,2]
[386523834,1758349839228,-480.0,0.0002307,2]
[386523835,1758349839237,-297.86334668,0.0002307,2]
[386523836,1758349839247,-480.0,0.0002307,2]
[386523837,1758349839256,-480.0,0.0002307,2]
[386523838,1758349839265,-480.0,0.0002307,2]
[386523839,1758349839275,-377.18824703,0.0002307,2]
[386523840,1758349839284,-289.09419764,0.0002307,2]
[386523841,1758349839293,-480.0,0.0002307,2]
[386523842,1758349839302,-480.0,0.0002307,2]
[386523843,1758349839311,-492.48345588,0.0002307,2]
[386523844,1758349839321,-480.0,0.0002307,2]
[386523845,1758349839330,-480.0,0.0002307,2]
[386523846,1758349839340,-480.0,0.0002307,2]
[386523847,1758349839349,-480.0,0.0002307,2]
[386523848,1758349839358,-480.0,0.0002307,2]
[386523849,1758349839368,-482.16324779,0.0002307,2]
[386523850,1758349839377,-481.78751058,0.0002307,2]
[386523851,1758349839387,-492.0763076,0.0002307,2]
[386523852,1758349839396,-480.0,0.0002307,2]
[386523853,1758349839405,-564.47274283,0.0002307,2]
[386523854,1758349839415,-500.0,0.00023073,2]
[386523855,1758349839423,-503.68325166,0.00023073,2]
[386523856,1758349839433,-218.03426629,0.00023096,2]
[386523857,1758349839442,-688.75087269,0.00023097,2]
[386523858,1758349839451,-233.47853244,0.00023097,2]
[386523860,1758349839462,-480.0,0.00023191,2]
[386523861,1758349839471,-513.56439847,0.00023191,2]
[386523862,1758349839480,-480.0,0.00023191,2]
[386523863,1758349839490,-480.0,0.00023191,2]
[386523865,1758349839500,-480.0,0.00023191,2]
[386523866,1758349839511,-157.24898937,0.00023191,2]
[386523867,1758349839520,-480.0,0.00023191,2]
[386523868,1758349839530,-155.0,0.00023192,2]
[386523869,1758349839540,-486.00670462,0.00023193,2]
[386523870,1758349839550,-228.1878684,0.00023193,2]
[386523871,1758349839559,-480.0,0.00023193,2]
[386523872,1758349839568,-1159.55,0.00023193,2]
[386523873,1758349839579,-480.0,0.00023193,2]
[386523875,1758349839589,-480.0,0.00023193,2]
[386523877,1758349839599,-2786.99,0.00023198,2]
[386523879,1758349839608,-480.0,0.00023201,2]
[386523881,1758349839617,-480.0,0.00023201,2]
[386523883,1758349839627,-480.0,0.00023201,2]
[386523885,1758349839636,-480.0,0.00023201,2]
[386523887,1758349839645,-480.0,0.00023202,2]
[386523889,1758349839655,-347.45764359,0.00023202,2]
[386523891,1758349839665,-480.0,0.00023241,2]
[386523893,1758349839674,-480.0,0.00023241,2]
[386523895,1758349839683,-480.0,0.00023241,2]
[386523897,1758349839692,-480.0,0.00023241,2]
[386523898,1758349839701,-510.90172764,0.00023254,2]
[386523900,1758349839710,-502.73966054,0.00023254,2]
[386523902,1758349839720,-500.0,0.00023289,2]
[386523904,1758349839729,-501.00349358,0.00023289,2]
[386523906,1758349839739,-500.0,0.00023289,2]
[386523908,1758349839748,-150.40774745,0.00023289,2]
[386523910,1758349839758,-365.77221023,0.00023289,2]
[386523912,1758349839767,-506.39719463,0.00023289,2]
[386523914,1758349839776,-500.0,0.00023289,2]
[386523916,1758349839787,-500.0,0.00023289,2]
[386523918,1758349839797,-500.0,0.00023289,2]
[386523920,1758349839807,-500.0,0.00023289,2]
[386523922,1758349839816,-480.0,0.00023342,2]
[386523924,1758349839826,-480.0,0.00023342,2]
[386523926,1758349839836,-480.0,0.00023342,2]
[386523929,1758349839846,-600.06770766,0.00023342,2]
[386523931,1758349839856,-283.30462082,0.00023342,2]
[386523932,1758349839867,-480.0,0.00023342,2]
[386523934,1758349839876,-480.0,0.00023342,2]
[386523936,1758349839885,-480.0,0.00023342,2]
[386523938,1758349839894,-480.0,0.00023342,2]
[386523940,1758349839903,-480.0,0.00023342,2]
[386523942,1758349839913,-480.0,0.00023342,2]
[386523944,1758349839923,-480.0,0.00023342,2]
[386523946,1758349839933,-570.69,0.00023342,2]
[386523949,1758349839942,-480.0,0.00023342,2]
[386523950,1758349839952,-480.0,0.00023344,2]
[386523952,1758349839961,-480.0,0.00023344,2]
[386523954,1758349839971,-480.0,0.00023344,2]
[386523956,1758349839980,-480.0,0.00023344,2]
[386523958,1758349839993,-480.0,0.00023344,2]
[386523959,1758349840003,-504.89701972,0.00023344,2]
[386523960,1758349840012,-480.0,0.00023344,2]
[386523961,1758349840022,-507.64710878,0.00023344,2]
[386523962,1758349840032,-480.0,0.00023344,2]
[386523963,1758349840044,-480.0,0.00023344,2]
[386523964,1758349840053,-480.0,0.00023344,2]
[386523965,1758349840064,-480.0,0.00023344,2]
[386523966,1758349840074,-480.0,0.00023344,2]
[386523967,1758349840084,-480.0,0.00023344,2]
[386523968,1758349840093,-514.5,0.00023344,2]
[386523969,1758349840103,-480.0,0.00023344,2]
[386523970,1758349840112,-480.0,0.00023344,2]
[386523971,1758349840121,-480.0,0.00023344,2]
[386523972,1758349840131,-480.0,0.00023344,2]
[386523973,1758349840140,-480.0,0.00023344,2]
[386523974,1758349840150,-480.0,0.00023344,2]
[386523975,1758349840160,-480.0,0.00023344,2]
[386523976,1758349840169,-218.86752058,0.00023344,2]
[386523977,1758349840178,-480.0,0.00023344,2]
[386523978,1758349840187,-480.0,0.00023344,2]
[386523979,1758349840196,-485.7,0.00023344,2]
[386523980,1758349840205,-480.0,0.00023344,2]
[386523981,1758349840215,-480.0,0.00023344,2]
[386523982,1758349840223,-480.0,0.00023344,2]
[386523983,1758349840233,-198.38936905,0.000234,2]
[386523984,1758349840242,-411.24,0.00023455,3]
[386523985,1758349840251,-480.0,0.00023464,2]
[386523986,1758349840260,-297.46853025,0.00023464,2]
[386523987,1758349840270,-490.0010079,0.00023464,2]
[386523988,1758349840279,-480.0,0.00023464,2]
[386523989,1758349840289,-488.03606376,0.00023464,2]
[386523990,1758349840298,-487.82382391,0.00023464,2]
[386523991,1758349840307,-500.82303565,0.00023464,2]
[386523992,1758349840317,-491.8626027,0.00023464,2]
[386523994,1758349840327,-488.53872383,0.00023464,2]
[386523995,1758349840337,-489.99276791,0.00023464,2]
[386523997,1758349840346,-483.71174376,0.00023464,2]
[386523999,1758349840356,-480.0,0.00023464,2]
[386524001,1758349840366,-480.0,0.00023464,2]
[386524003,1758349840376,-494.97038218,0.00023464,2]
[386524005,1758349840385,-480.0,0.00023464,2]
[386524007,1758349840395,-485.43787419,0.00023464,2]
[386524009,1758349840403,-480.0,0.00023464,2]
[386524011,1758349840413,-246.99669069,0.00023464,2]
[386524013,1758349840422,-502.11820812,0.00023464,2]
[386524014,1758349840432,-488.60781392,0.00023464,2]
[386524016,1758349840442,-482.8,0.00023464,2]